bitfinex/quotes_BTCUSD_20210101
["timestamp","ask_amount","ask_price","bid_price","bid_amount"]
[1609530753598,0.51460001,29125.0,29113.0,0.92775256]
[1609530753799,0.195,29124.0,29113.0,0.92775256]
[1609530754099,0.195,29124.0,29114.0,0.563561]
[1609530754304,0.51460001,29125.0,29113.0,0.92775256]
[1609530754503,0.338554,29123.0,29113.0,0.39506]
[1609530754714,0.08,29122.0,29111.0,0.2702]
[1609530754912,0.338554,29121.0,29110.0,1.3274]
[1609530755103,0.075,29120.0,29110.0,1.3274]
[1609530755416,0.338554,29119.0,29111.0,0.285]
[1609530755620,0.853354,29119.0,29110.0,0.6644]
[1609530755819,0.075,29118.0,29110.0,0.6644]
[1609530756017,0.338554,29117.0,29110.0,0.6644]
[1609530757516,0.338554,29117.0,29108.0,0.1029]
[1609530757816,0.165,29116.0,29108.0,0.1029]
[1609530758022,0.5148,29114.0,29108.0,0.1029]
[1609530758223,0.338554,29113.0,29108.0,0.1029]
[1609530762142,0.338554,29113.0,29109.0,0.005]
[1609530763839,0.338554,29113.0,29108.0,0.1029]
[1609530764037,0.267094,29113.0,29108.0,0.1029]
[1609530764242,0.267094,29113.0,29108.0,1.1029]
[1609530764444,0.267094,29113.0,29109.0,0.165]
[1609530764845,0.267094,29113.0,29109.0,0.32288]
[1609530764978,0.267094,29113.0,29109.0,0.15788]
[1609530770124,0.5148,29114.0,29108.0,0.1029]
[1609530770322,0.267097,29113.0,29108.0,0.1029]
[1609530771056,0.5148,29114.0,29108.0,1.1029]
[1609530771357,0.267097,29113.0,29109.0,0.195]
[1609530771553,0.5148,29114.0,29109.0,1.195]
[1609530771854,0.5148,29114.0,29110.0,0.363543]
[1609530772053,0.5148,29114.0,29108.0,0.1029]
[1609530772456,0.267097,29113.0,29108.0,0.1029]
[1609530772852,0.267097,29112.0,29108.0,0.1029]
[1609530773155,0.267097,29113.0,29108.0,0.1029]
[1609530781953,0.267097,29111.0,29108.0,0.1029]
[1609530783585,0.5149,29110.0,29108.0,0.1029]
[1609530783753,0.267097,29109.0,29108.0,0.1029]
[1609530785151,0.267097,29109.0,29108.0,0.0979]
[1609530787475,0.267097,29109.0,29107.0,0.006533]
[1609530792198,0.267097,29109.0,29107.0,1.006533]
[1609530792405,0.5149,29110.0,29108.0,4.282703]
[1609530792600,0.6865,29115.0,29109.0,5.523543]
[1609530792809,0.6865,29115.0,29111.0,0.363543]
[1609530793011,0.00208679,29118.0,29113.0,0.363543]
[1609530793205,1.0,29118.0,29115.0,0.363543]
[1609530793407,1.0,29118.0,29115.0,0.69534602]
[1609530793909,0.04173453,29122.0,29115.0,0.363543]
[1609530793910,0.00208653,29122.0,29115.0,0.363543]
[1609530794103,0.00208653,29122.0,29116.0,0.435]
[1609530794307,0.00208653,29122.0,29117.0,0.363543]
[1609530794308,1.0,29122.0,29117.0,0.363543]
[1609530794602,1.0,29122.0,29116.0,0.005]
[1609530794885,0.267097,29121.0,29116.0,0.005]
[1609530795252,0.267097,29123.0,29116.0,0.005]
[1609530795453,0.267097,29123.0,29117.0,0.335]
[1609530795656,0.267097,29123.0,29115.0,1.1565]
[1609530795868,0.267097,29121.0,29114.0,0.1029]
[1609530796056,1.075,29122.0,29114.0,0.1029]
[1609530796057,0.72427388,29120.0,29114.0,0.1029]
[1609530796367,0.267097,29115.0,29111.0,0.6623]
[1609530796553,0.267097,29115.0,29109.0,0.4832]
[1609530796823,0.09044,29116.0,29108.0,0.6937]
[1609530796824,0.5149,29112.0,29108.0,0.6937]
[1609530797021,0.267097,29111.0,29108.0,0.6937]
[1609530801642,0.267097,29111.0,29108.0,0.8887]
[1609530802243,0.267097,29111.0,29108.0,0.81694508]
[1609530802645,0.267097,29111.0,29108.0,0.62194508]
[1609530810818,0.262097,29111.0,29108.0,0.62194508]
[1609530813324,0.262097,29111.0,29109.0,0.23317832]
[1609530813521,0.5149,29112.0,29109.0,0.39472832]
[1609530813722,0.262095,29111.0,29109.0,0.39472832]
[1609530813922,0.262095,29111.0,29110.0,0.2]
[1609530814124,0.25681769,29111.0,29110.0,0.2]
[1609530814325,0.5149,29112.0,29111.0,0.363543]
[1609530814733,0.68858594,29118.0,29111.0,1.368543]
[1609530814931,1.0,29117.0,29112.0,1.59317832]
[1609530815125,1.0,29117.0,29113.0,1.653543]
[1609530815429,0.00208594,29118.0,29113.0,1.653543]
[1609530815660,0.00208594,29118.0,29114.0,0.335]
[1609530815964,0.51688569,29119.0,29116.0,0.363543]
[1609530816160,0.5148,29119.0,29116.0,0.363543]
[1609530816357,0.5148,29119.0,29117.0,0.2]
[1609530816559,0.5148,29119.0,29118.0,0.45672132]
[1609530817357,0.86018568,29124.0,29118.0,0.45672132]
[1609530817560,0.256819,29122.0,29118.0,0.09317832]
[1609530817960,0.5147,29121.0,29118.0,0.09317832]
[1609530818559,0.256819,29120.0,29118.0,0.09317832]
[1609530821274,0.5147,29121.0,29118.0,0.09317832]
[1609530821476,0.256819,29120.0,29118.0,0.09317832]
[1609530825626,0.5147,29121.0,29118.0,0.09317832]
[1609530826325,0.256819,29120.0,29118.0,0.09317832]
[1609530826523,0.5147,29121.0,29118.0,0.09317832]
[1609530826725,0.256819,29120.0,29118.0,0.09317832]
[1609530827458,0.241819,29120.0,29118.0,0.09317832]
[1609530831090,0.51643458,29121.0,29118.0,0.09317832]
[1609530831491,0.51143458,29121.0,29118.0,0.09317832]
[1609530831791,0.241833,29120.0,29118.0,0.09317832]
[1609530832194,0.51143458,29121.0,29116.0,0.005]
[1609530832495,0.51143458,29121.0,29117.0,0.64163332]
[1609530832900,0.00173458,29121.0,29118.0,0.09317832]
[1609530833692,0.241833,29120.0,29118.0,0.09317832]
[1609530833895,0.00173458,29121.0,29117.0,0.005]
[1609530834193,0.00173458,29121.0,29118.0,0.09317832]
[1609530834893,0.241833,29120.0,29117.0,0.005]
[1609530835293,0.00173458,29121.0,29117.0,0.005]
[1609530835495,0.309085,29118.0,29117.0,0.005]
[1609530835992,0.309085,29118.0,29117.0,0.368455]
[1609530836215,0.309085,29118.0,29117.0,0.513455]
[1609530836620,1.309085,29118.0,29117.0,0.145]
[1609530836818,1.309085,29118.0,29114.0,1.3109]
[1609530837017,1.309085,29118.0,29115.0,0.363455]
[1609530837214,1.309085,29118.0,29114.0,1.3109]
[1609530837617,0.309085,29118.0,29114.0,1.3109]
[1609530837820,0.409085,29118.0,29115.0,0.17]
[1609530838017,0.241833,29117.0,29115.0,0.17]
[1609530838221,0.241833,29117.0,29114.0,1.3109]
[1609530838516,0.409085,29118.0,29114.0,1.3109]
[1609530839318,0.409085,29118.0,29115.0,0.363455]
[1609530839518,0.409085,29118.0,29116.0,0.265]
[1609530840012,0.409085,29118.0,29114.0,1.3109]
[1609530840155,0.409085,29118.0,29115.0,0.363455]
[1609530840363,0.409085,29118.0,29114.0,1.3109]
[1609530840559,0.241833,29117.0,29114.0,1.3109]
[1609530840766,0.409085,29118.0,29115.0,0.21]
[1609530840964,0.241833,29117.0,29115.0,0.21]
[1609530842802,0.241833,29117.0,29114.0,0.005]
[1609530844807,0.40658203,29117.0,29113.0,0.1029]
[1609530845004,0.235,29116.0,29113.0,0.1029]
[1609530845201,0.241833,29115.0,29113.0,0.1029]
[1609530846130,0.756633,29115.0,29113.0,0.1029]
[1609530847830,4.65,29114.0,29113.0,0.1029]
[1609530848029,5.231833,29114.0,29113.0,0.1029]
[1609530849532,5.306833,29114.0,29113.0,0.1029]
[1609530850528,7.756833,29114.0,29113.0,0.1029]
[1609530850732,7.756833,29114.0,29109.0,0.0002]
[1609530851038,0.241833,29110.0,29108.0,0.6694]
[1609530851268,0.568183,29109.0,29108.0,0.6694]
[1609530851456,1.618183,29109.0,29108.0,0.6694]
[1609530851762,1.618183,29109.0,29108.0,0.0002]
[1609530852064,2.591833,29108.0,29107.0,0.006733]
[1609530852359,3.278433,29108.0,29107.0,0.006733]
[1609530852858,0.928433,29108.0,29107.0,0.006733]
[1609530853055,1.223433,29108.0,29107.0,0.006733]
[1609530853454,2.073433,29108.0,29107.0,0.006733]
[1609530853655,1.223433,29108.0,29107.0,0.006733]
[1609530855887,1.223433,29108.0,29107.0,0.09991132]
[1609530856084,1.223433,29108.0,29107.0,1.09991132]
[1609530856289,0.6866,29108.0,29107.0,3.96836632]
[1609530856496,0.5149,29109.0,29107.0,1.66836632]
[1609530856698,0.5149,29109.0,29108.0,3.918655]
[1609530856924,0.309085,29118.0,29108.0,4.118655]
[1609530857230,1.0,29117.0,29110.0,0.363455]
[1609530857420,0.309085,29118.0,29112.0,0.363455]
[1609530857725,0.6864,29115.0,29110.0,1.6396]
[1609530857923,0.6864,29115.0,29112.0,0.005]
[1609530857924,0.9438,29115.0,29112.0,0.005]
[1609530858119,0.9438,29115.0,29113.0,0.363455]
[1609530858320,0.9438,29115.0,29113.0,0.601905]
[1609530858918,0.241833,29114.0,29113.0,0.23845]
[1609530859123,0.396833,29114.0,29113.0,0.23845]
[1609530859325,1.946833,29114.0,29113.0,0.23845]
[1609530859520,1.946833,29114.0,29110.0,0.6396]
[1609530860017,0.396833,29114.0,29110.0,0.6396]
[1609530860221,0.9438,29115.0,29110.0,0.6396]
[1609530860521,0.9438,29115.0,29111.0,0.005]
[1609530860947,0.241833,29114.0,29111.0,0.005]
[1609530861148,0.9438,29115.0,29111.0,0.005]
[1609530861451,0.24,29114.0,29111.0,0.005]
[1609530862547,0.24,29114.0,29110.0,0.6446]
[1609530862751,0.9438,29115.0,29110.0,0.6446]
[1609530862948,0.241833,29114.0,29110.0,0.6446]
[1609530863246,0.9438,29115.0,29110.0,0.6446]
[1609530863550,0.241833,29114.0,29110.0,0.6396]
[1609530863952,0.241833,29114.0,29111.0,0.235]
[1609530864251,0.9438,29115.0,29110.0,0.6396]
[1609530864554,0.6864,29115.0,29111.0,0.368455]
[1609530864751,0.6864,29115.0,29111.0,0.606015]
[1609530865153,0.6864,29115.0,29112.0,0.365]
[1609530865354,0.6864,29115.0,29113.0,0.363455]
[1609530865554,0.6864,29115.0,29111.0,0.24256]
[1609530865855,0.6864,29115.0,29111.0,0.23756]
[1609530866059,0.241833,29114.0,29111.0,0.23756]
[1609530868883,0.258293,29114.0,29111.0,0.23756]
[1609530869086,0.258293,29114.0,29110.0,0.6396]
[1609530869284,0.258293,29114.0,29111.0,0.235]
[1609530869491,0.258293,29114.0,29110.0,0.6396]
[1609530869687,0.258293,29114.0,29110.0,0.6446]
[1609530870417,0.01646,29114.0,29110.0,0.6446]
[1609530870619,0.01646,29114.0,29111.0,0.235]
[1609530870820,0.241833,29113.0,29110.0,0.6446]
[1609530871017,0.01646,29114.0,29110.0,0.6446]
[1609530871516,0.241833,29113.0,29110.0,0.6446]
[1609530871717,0.01646,29114.0,29110.0,0.6446]
[1609530871962,0.01646,29114.0,29111.0,0.235]
[1609530872163,0.01646,29114.0,29110.0,0.6446]
[1609530874267,0.01646,29114.0,29110.0,0.005]
[1609530874268,0.241833,29113.0,29110.0,0.005]
[1609530874671,0.6864,29115.0,29110.0,0.005]
[1609530874672,0.258293,29111.0,29110.0,0.005]
[1609530874972,0.258293,29111.0,29108.0,0.0002]
[1609530875162,0.01646,29111.0,29107.0,0.006733]
[1609530875365,0.01646,29111.0,29108.0,0.363455]
[1609530875791,0.01646,29111.0,29108.0,0.363655]
[1609530875992,0.53126,29111.0,29108.0,0.368655]
[1609530876892,0.50146,29111.0,29108.0,0.368655]
[1609530877494,0.50146,29111.0,29108.0,0.05957]
[1609530877906,0.50146,29111.0,29108.0,0.0002]
[1609530878105,0.50146,29111.0,29107.0,0.006733]
[1609530878305,0.50146,29111.0,29108.0,0.508557]
[1609530878703,0.50146,29111.0,29108.0,0.508757]
[1609530885212,0.75896,29111.0,29108.0,0.508757]
[1609530885414,0.75896,29111.0,29109.0,0.0002]
[1609530885807,0.363557,29110.0,29109.0,0.0002]
[1609530886010,0.75896,29111.0,29107.0,0.006733]
[1609530886209,0.75896,29111.0,29108.0,0.363557]
[1609530886412,0.75396,29111.0,29108.0,0.363557]
[1609530886613,0.75396,29111.0,29108.0,0.363757]
[1609530887213,0.75396,29111.0,29108.0,0.0002]
[1609530887423,0.363557,29110.0,29107.0,0.006733]
[1609530887615,0.363557,29110.0,29108.0,0.145]
[1609530887822,0.75396,29111.0,29109.0,0.363557]
[1609530888019,0.75396,29111.0,29108.0,0.0002]
[1609530888214,0.363557,29110.0,29108.0,0.0002]
[1609530888520,0.84616,29111.0,29107.0,0.006733]
[1609530888716,0.92364,29111.0,29108.0,0.508557]
[1609530888913,0.92364,29111.0,29108.0,0.145]
[1609530889113,0.92364,29111.0,29108.0,0.0002]
[1609530889316,0.363557,29110.0,29108.0,0.0002]
[1609530889722,0.363557,29110.0,29107.0,0.006733]
[1609530889915,1.02364,29111.0,29107.0,0.006733]
[1609530890730,0.363557,29110.0,29107.0,0.006733]
[1609530895032,0.1,29109.0,29107.0,0.006733]
[1609530895242,1.937345,29108.0,29107.0,0.006733]
[1609530895742,2.10209403,29108.0,29107.0,0.006733]
[1609530895936,2.132345,29108.0,29107.0,0.006733]
[1609530896551,1.937345,29108.0,29107.0,0.006733]
[1609530897853,0.937345,29108.0,29107.0,0.006733]
[1609530898853,2.787345,29108.0,29107.0,0.006733]
[1609530899154,2.962345,29108.0,29107.0,0.006733]
[1609530900577,0.362345,29108.0,29107.0,0.001733]
[1609530900880,0.187345,29108.0,29107.0,0.001733]
[1609530901375,0.45604601,29108.0,29107.0,0.001733]
[1609530902015,1.58e-06,29107.0,29106.0,0.1029]
[1609530902217,0.36355858,29107.0,29106.0,0.1029]
[1609530902416,0.87855858,29107.0,29106.0,0.1029]
[1609530905422,0.87855858,29107.0,29106.0,0.1031]
[1609530907342,0.98600988,29107.0,29106.0,0.1031]
[1609530907650,1.49259988,29107.0,29106.0,0.1031]
[1609530907845,6.11132488,29107.0,29106.0,0.1031]
[1609530908148,6.11132488,29107.0,29105.0,0.0002]
[1609530908346,6.5,29105.0,29104.0,1.5]
[1609530908553,7.57197928,29105.0,29104.0,1.5]
[1609530908745,7.64697928,29105.0,29104.0,1.1567]
[1609530908942,8.77858928,29105.0,29104.0,1.11680471]
[1609530909340,8.77858928,29105.0,29104.0,1.10720965]
[1609530909542,8.72181916,29105.0,29104.0,1.09550311]
[1609530909741,8.72181916,29105.0,29104.0,1.03903833]
[1609530910145,9.40861917,29105.0,29104.0,1.03903833]
[1609530910743,9.40861917,29105.0,29104.0,0.97123174]
[1609530911144,9.40861917,29105.0,29104.0,0.9364888]
[1609530911369,9.73287645,29105.0,29104.0,0.9364888]
[1609530911764,9.40861917,29105.0,29104.0,0.9364888]
[1609530911977,9.40861917,29105.0,29104.0,0.80061312]
[1609530912268,9.40861917,29105.0,29104.0,0.77619579]
[1609530912572,9.73287645,29105.0,29104.0,0.77619579]
[1609530913069,9.99264795,29105.0,29104.0,0.77619579]
[1609530913266,9.99264795,29105.0,29104.0,0.43279578]
[1609530914271,9.99264795,29105.0,29104.0,0.38740019]
[1609530915843,8.99264795,29105.0,29104.0,0.38740019]
[1609530916842,9.66839067,29105.0,29104.0,0.38740019]
[1609530917078,10.06440396,29105.0,29104.0,0.38740019]
[1609530917280,10.082343,29105.0,29104.0,0.38740019]
[1609530918583,11.37708817,29105.0,29104.0,0.38740019]
[1609530918982,11.37708817,29105.0,29104.0,0.30152023]
[1609530919291,0.187345,29100.0,29096.0,0.0004]
[1609530919491,0.463557,29098.0,29096.0,0.0004]
[1609530919690,3.4471165,29097.0,29096.0,0.0004]
[1609530919879,3.55509541,29097.0,29096.0,0.0004]
[1609530921398,0.55509541,29097.0,29096.0,0.0004]
[1609530921596,1.74532391,29097.0,29096.0,0.0004]
[1609530921796,2.34509541,29097.0,29096.0,0.0004]
[1609530921997,0.7871165,29097.0,29096.0,0.0004]
[1609530922595,2.0371165,29097.0,29096.0,0.0004]
[1609530922797,0.7871165,29097.0,29096.0,0.0004]
[1609530924796,0.89509541,29097.0,29096.0,0.0004]
[1609530926198,0.99509541,29097.0,29096.0,0.0004]
[1609530926624,0.89509541,29097.0,29096.0,0.0004]
[1609530926925,0.99509541,29097.0,29096.0,0.0004]
[1609530927529,2.54509541,29097.0,29096.0,0.0004]
[1609530928323,2.44509541,29097.0,29096.0,0.0004]
[1609530929528,4.34509541,29097.0,29096.0,0.0004]
[1609530929726,2.44509541,29097.0,29096.0,0.0004]
[1609530930025,2.54509541,29097.0,29096.0,0.0004]
[1609530930578,5.04509541,29097.0,29096.0,0.0004]
[1609530930778,5.12009541,29097.0,29096.0,0.0004]
[1609530930974,5.44435269,29097.0,29096.0,0.0004]
[1609530932223,3.19435269,29097.0,29096.0,0.0004]
[1609530932423,4.52009541,29097.0,29096.0,0.0004]
[1609530932625,2.94186352,29097.0,29096.0,0.0004]
[1609530932824,2.95980555,29097.0,29096.0,0.0004]
[1609530933023,2.70980555,29097.0,29096.0,0.0004]
[1609530933331,1.25,29096.0,29094.0,0.0006]
[1609530933527,1.913557,29095.0,29094.0,0.0006]
[1609530933731,2.013557,29095.0,29094.0,0.0006]
[1609530933961,2.353557,29095.0,29094.0,0.0006]
[1609530934626,1.07989156,29095.0,29094.0,0.0006]
[1609530934827,0.71633456,29095.0,29094.0,1.45733532]
[1609530935036,0.44749137,29095.0,29094.0,1.45733532]
[1609530935240,0.5152,29098.0,29094.0,1.87733532]
[1609530935440,0.5152,29098.0,29097.0,2.663557]
[1609530935638,0.07165499,29102.0,29097.0,3.95673532]
[1609530935863,0.03582593,29101.0,29098.0,1.0]
[1609530936056,0.03582593,29101.0,29099.0,0.363557]
[1609530936254,0.03582593,29101.0,29100.0,0.09317832]
[1609530936454,0.03582593,29101.0,29100.0,0.63389532]
[1609530937153,0.55092593,29101.0,29100.0,0.63389532]
[1609530937351,0.55092593,29101.0,29100.0,0.87909532]
[1609530937755,0.55092593,29101.0,29100.0,0.87889532]
[1609530937953,0.38592593,29101.0,29100.0,0.63389532]
[1609530939453,0.38092593,29101.0,29100.0,0.63389532]
[1609530939653,0.38092593,29101.0,29100.0,1.63389532]
[1609530939856,0.38092593,29101.0,29100.0,0.87889532]
[1609530940055,0.38092593,29101.0,29100.0,0.87909532]
[1609530941157,0.38092593,29101.0,29100.0,0.87889532]
[1609530943673,0.38092593,29101.0,29100.0,0.87389532]
[1609530944274,0.38092593,29101.0,29100.0,0.62889532]
[1609530944883,0.38092593,29101.0,29100.0,0.535717]
[1609530946713,0.38092593,29101.0,29100.0,0.540717]
[1609530946908,0.38092593,29101.0,29100.0,0.540917]
[1609530947846,0.38092593,29101.0,29100.0,0.540717]
[1609530948543,0.38092593,29101.0,29100.0,0.530717]
[1609530950978,0.03581054,29103.0,29100.0,1.530717]
[1609530951280,0.03581054,29103.0,29102.0,0.363557]
[1609530951281,0.55081054,29103.0,29102.0,0.363557]
[1609530951478,0.55081054,29103.0,29102.0,0.45173532]
[1609530952277,0.03581054,29103.0,29102.0,0.45173532]
[1609530952980,0.03581054,29103.0,29102.0,1.45173532]
[1609530953187,0.03581054,29103.0,29102.0,1.89673532]
[1609530953384,1.58e-06,29107.0,29102.0,4.39693532]
[1609530953584,1.58e-06,29107.0,29106.0,0.36362]
[1609530953785,1.58e-06,29107.0,29106.0,0.63586832]
[1609530954378,1.58e-06,29107.0,29106.0,0.86086832]
[1609530959608,1.58e-06,29107.0,29106.0,0.77269]
[1609530959805,1.58e-06,29107.0,29106.0,0.86086832]
[1609530960271,1.58e-06,29107.0,29106.0,0.85586832]
[1609530961633,1.58e-06,29107.0,29106.0,0.76769]
[1609530962027,1.58e-06,29107.0,29106.0,0.85586832]
[1609530962675,1.58e-06,29107.0,29106.0,0.49224832]
[1609530963070,1.58e-06,29107.0,29106.0,0.40407]
[1609530963270,1.58e-06,29107.0,29106.0,0.49224832]
[1609530963971,1.58e-06,29107.0,29106.0,0.40407]
[1609530964677,0.515,29108.0,29106.0,0.18407]
[1609530964881,0.515,29108.0,29105.0,0.2002]
[1609530965184,0.36362,29114.0,29105.0,0.0002]
[1609530965377,0.36362,29114.0,29104.0,0.8486]
[1609530965678,0.197272,29112.0,29104.0,0.6486]
[1609530965897,0.197272,29112.0,29104.0,0.8486]
[1609530966097,0.5149,29110.0,29104.0,0.6486]
[1609530966297,0.36362,29109.0,29104.0,0.6486]
[1609530966897,0.5149,29110.0,29105.0,0.36362]
[1609530967097,0.51256866,29110.0,29106.0,0.33817832]
[1609530967298,0.51256866,29110.0,29106.0,0.56765832]
[1609530968199,0.51256866,29110.0,29107.0,0.24]
[1609530968703,0.8585,29112.0,29108.0,0.36362]
[1609530969001,0.36362,29115.0,29107.0,0.24]
[1609530969199,0.36362,29115.0,29107.0,0.2]
[1609530969699,0.36362,29115.0,29106.0,0.31765832]
[1609530970000,0.5149,29113.0,29106.0,0.31765832]
[1609530970204,0.36362,29112.0,29107.0,0.28]
[1609530970400,0.36362,29112.0,29106.0,0.31765832]
[1609530970401,0.47100523,29112.0,29106.0,0.31765832]
[1609530970599,0.10738523,29112.0,29107.0,0.36362]
[1609530971101,0.10738523,29112.0,29106.0,0.31765832]
[1609530971300,0.10738523,29112.0,29107.0,0.2]
[1609530971528,0.10738523,29112.0,29106.0,0.31765832]
[1609530971731,0.10738523,29112.0,29107.0,0.56362]
[1609530971932,0.10738523,29112.0,29107.0,0.56862]
[1609530972136,0.55069508,29112.0,29108.0,1.0]
[1609530972340,0.55069508,29112.0,29109.0,0.36817832]
[1609530972341,0.5149,29112.0,29109.0,0.36817832]
[1609530972542,0.81598443,29116.0,29110.0,0.36362]
[1609530972841,1.0,29115.0,29111.0,0.145]
[1609530973036,1.0,29115.0,29112.0,0.53862]
[1609530973339,0.36362,29115.0,29112.0,0.14837]
[1609530973536,0.5149,29114.0,29112.0,0.14837]
[1609530974139,0.36362,29113.0,29112.0,0.14837]
[1609530975977,0.5149,29114.0,29112.0,0.23654832]
[1609530976873,0.36362,29113.0,29112.0,0.23654832]
[1609530979924,0.36362,29113.0,29111.0,0.195]
[1609530980128,0.36362,29113.0,29110.0,0.0649]
[1609530980432,0.36362,29113.0,29104.0,0.6434]
[1609530980433,0.36362,29110.0,29104.0,0.6434]
[1609530980630,7.397272,29106.0,29104.0,0.0002]
[1609530980841,8.3147957,29105.0,29104.0,0.0002]
[1609530981255,8.3147957,29105.0,29097.0,0.2193]
[1609530981457,8.3147957,29105.0,29096.0,0.0002]
[1609530981649,0.6834477,29104.0,29096.0,0.0002]
[1609530981862,0.36362,29102.0,29095.0,0.6485]
[1609530982055,0.197272,29100.0,29095.0,0.6485]
[1609530983049,0.4570435,29100.0,29095.0,0.6485]
[1609530983659,0.36362,29098.0,29095.0,0.6485]
[1609530983960,0.197272,29096.0,29095.0,0.6485]
[1609530984148,0.4570435,29096.0,29095.0,0.6485]
[1609530984348,0.197272,29096.0,29095.0,0.6485]
[1609530984550,0.197272,29096.0,29095.0,0.0002]
[1609530984756,0.417272,29096.0,29094.0,0.0008]
[1609530985754,0.36362,29095.0,29094.0,0.0008]
[1609530985956,1.11362,29095.0,29094.0,0.0008]
[1609530986252,0.36362,29095.0,29094.0,0.0008]
[1609530989080,0.27362,29095.0,29094.0,0.0008]
[1609530989980,0.18362,29095.0,29094.0,0.0008]
[1609530990423,0.18362,29095.0,29091.0,1.1254]
[1609530990617,0.18362,29095.0,29092.0,0.18]
[1609530991120,0.09362,29095.0,29092.0,0.18]
[1609530991315,0.09362,29095.0,29093.0,0.19]
[1609530992560,0.09362,29095.0,29091.0,1.1254]
[1609530992753,0.09362,29095.0,29091.0,0.47123386]
[1609530993450,0.09362,29095.0,29091.0,0.47143386]
[1609530993755,0.107272,29093.0,29091.0,0.47143386]
[1609530994053,0.608807,29092.0,29091.0,0.47143386]
[1609530994854,2.246897,29092.0,29091.0,0.0002]
[1609530995160,2.406897,29092.0,29090.0,0.001]
[1609530995352,3.207271,29091.0,29090.0,0.001]
[1609530995647,0.107271,29091.0,29090.0,0.001]
[1609530995850,1.357271,29091.0,29090.0,0.001]
[1609530996085,1.267271,29091.0,29090.0,0.001]
[1609530996492,0.017271,29091.0,29090.0,0.001]
[1609530996883,1.617271,29091.0,29090.0,0.001]
[1609530997183,1.957271,29091.0,29090.0,0.001]
[1609530997485,0.017271,29091.0,29090.0,0.001]
[1609530997885,1.243605,29091.0,29090.0,0.001]
[1609530998584,0.093605,29091.0,29090.0,0.001]
[1609530999088,0.003605,29091.0,29090.0,0.001]
[1609530999988,0.003605,29091.0,29090.0,0.101]
[1609531000287,0.003605,29091.0,29090.0,0.001]
[1609531000585,0.003605,29091.0,29090.0,0.101]
[1609531000787,0.266076,29092.0,29090.0,0.101]
[1609531002906,0.176076,29092.0,29090.0,0.101]
[1609531003906,0.176076,29092.0,29090.0,0.086]
[1609531004211,0.176076,29092.0,29090.0,0.245]
[1609531004409,0.086076,29092.0,29090.0,0.245]
[1609531004810,0.086076,29092.0,29090.0,0.145]
[1609531005432,0.683076,29093.0,29090.0,0.245]
[1609531005649,0.5152,29092.0,29091.0,0.14]
[1609531005850,0.5152,29092.0,29089.0,0.1006]
[1609531006048,0.5152,29092.0,29089.0,0.0006]
[1609531006450,0.58200633,29091.0,29089.0,0.0006]
[1609531006651,0.49200633,29091.0,29089.0,0.0006]
[1609531007378,0.49200633,29091.0,29089.0,0.0008]
[1609531007576,0.49200633,29091.0,29090.0,0.1]
[1609531007881,0.40200633,29091.0,29090.0,0.1002]
[1609531008674,0.40200633,29091.0,29090.0,0.0002]
[1609531008875,0.40200633,29091.0,29089.0,0.1008]
[1609531009175,0.31200633,29091.0,29089.0,0.1008]
[1609531010877,0.22200633,29091.0,29089.0,0.1008]
[1609531011580,0.22200633,29091.0,29089.0,0.0008]
[1609531011979,0.13200633,29091.0,29089.0,0.0008]
[1609531013398,0.04200633,29091.0,29089.0,0.0008]
[1609531015100,0.50300856,29092.0,29089.0,0.0008]
[1609531016803,0.50300856,29092.0,29090.0,0.1]
[1609531016804,0.41300856,29092.0,29090.0,0.1]
[1609531017002,0.41300856,29092.0,29090.0,0.1002]
[1609531017803,0.41300856,29092.0,29090.0,0.0002]
[1609531018006,0.41300856,29092.0,29090.0,0.1]
[1609531018007,0.32300856,29092.0,29090.0,0.1]
[1609531018620,0.32300856,29092.0,29090.0,0.1002]
[1609531019318,0.23300856,29092.0,29090.0,0.1002]
[1609531023225,0.23300856,29092.0,29091.0,0.363726]
[1609531023427,0.23300856,29092.0,29091.0,1.894976]
[1609531023637,0.68896477,29098.0,29091.0,1.894976]
[1609531023941,0.68896477,29098.0,29093.0,0.463726]
[1609531023942,0.68690001,29098.0,29093.0,0.463726]
[1609531024136,0.03579827,29101.0,29094.0,1.03346812]
[1609531024437,0.03579827,29101.0,29095.0,1.693726]
[1609531024630,0.00206776,29103.0,29097.0,0.363726]
[1609531024827,0.00206776,29103.0,29098.0,0.28]
[1609531025039,0.86076809,29105.0,29099.0,0.363726]
[1609531025336,0.363614,29104.0,29099.0,0.0052]
[1609531026149,0.5151,29102.0,29099.0,0.0052]
[1609531026347,0.5151,29102.0,29100.0,0.363614]
[1609531026549,0.8587,29105.0,29101.0,0.1]
[1609531026746,0.363614,29104.0,29101.0,0.1]
[1609531026948,0.363614,29104.0,29101.0,0.1002]
[1609531027346,0.363614,29104.0,29101.0,0.1052]
[1609531027549,0.363614,29104.0,29101.0,0.105]
[1609531028049,0.878614,29104.0,29101.0,0.105]
[1609531029150,0.363614,29103.0,29101.0,0.105]
[1609531029351,0.515,29104.0,29101.0,0.105]
[1609531029753,0.515,29104.0,29102.0,0.363614]
[1609531029957,0.8587,29105.0,29102.0,0.363614]
[1609531030151,0.07573847,29112.0,29102.0,0.363614]
[1609531030357,1.363614,29110.0,29102.0,0.6708]
[1609531030552,1.363614,29110.0,29103.0,0.17]
[1609531030857,0.515,29106.0,29104.0,0.2881]
[1609531031055,0.515,29106.0,29105.0,0.363614]
[1609531031254,0.515,29106.0,29105.0,0.528614]
[1609531031453,0.515,29106.0,29105.0,0.165]
[1609531031672,0.878614,29106.0,29104.0,0.1881]
[1609531031870,0.515,29106.0,29104.0,0.1881]
[1609531032374,0.363614,29105.0,29104.0,0.1881]
[1609531032573,0.515,29106.0,29104.0,0.1881]